fUSD/lending_fUSD_20250708
["ID","MTS","AMOUNT","RATE_DAILY","PERIOD"]
[370413520,1752007835615,-2882.229631,0.00024657,2]
[370413521,1752007835624,-152.048213,0.00024657,2]
[370413522,1752007835633,-162.183495,0.00024657,2]
[370413523,1752007835643,-2922.210658,0.00024657,2]
[370413524,1752007835652,-460.0,0.00024657,2]
[370413525,1752007835661,-460.0,0.00024657,2]
[370413526,1752007835671,-3105.938613,0.00024657,2]
[370413527,1752007835680,-557.56,0.00024657,2]
[370413528,1752007835689,-460.0,0.00024657,2]
[370413529,1752007835699,-1185.42,0.00024657,2]
[370413530,1752007835707,-460.0,0.00024657,2]
[370413531,1752007835717,-460.0,0.00024657,2]
[370413532,1752007835726,-460.0,0.00024657,2]
[370413533,1752007835735,-1020.26,0.00024657,2]
[370413534,1752007835744,-460.0,0.00024657,2]
[370413535,1752007835753,-658.95,0.00024657,2]
[370413536,1752007835763,-580.94,0.00024657,2]
[370413537,1752007835773,-460.0,0.00024657,2]
[370413538,1752007835782,-513.09,0.00024657,2]
[370413539,1752007835791,-460.0,0.00024657,2]
[370413540,1752007835801,-460.0,0.00024657,2]
[370413541,1752007835810,-460.0,0.00024657,2]
[370413542,1752007835820,-969.62,0.00024657,2]
[370413543,1752007835830,-666.49,0.00024657,2]
[370413544,1752007835841,-460.0,0.00024657,2]
[370413545,1752007835851,-460.0,0.00024657,2]
[370413546,1752007835861,-502.12,0.00024657,2]
[370413547,1752007835873,-851.35,0.00024657,2]
[370413548,1752007835882,-460.0,0.00024657,2]
[370413549,1752007835892,-460.0,0.00024657,2]
[370413550,1752007835901,-460.0,0.00024657,2]
[370413551,1752007835910,-350.45940724,0.00024657,2]
[370413552,1752007835920,-460.0,0.00024657,2]
[370413553,1752007835929,-460.0,0.00024657,2]
[370413554,1752007835938,-460.0,0.00024657,2]
[370413555,1752007835948,-460.0,0.00024657,2]
[370413556,1752007835958,-460.0,0.00024657,2]
[370413557,1752007835967,-520.0,0.00024657,2]
[370413558,1752007835976,-460.0,0.00024657,2]
[370413559,1752007835987,-460.0,0.00024657,2]
[370413560,1752007835998,-529.22,0.00024657,2]
[370413561,1752007836008,-460.0,0.00024657,2]
[370413562,1752007836018,-261.01743461,0.00024657,2]
[370413563,1752007836027,-460.0,0.00024657,2]
[370413564,1752007836038,-460.0,0.00024657,2]
[370413565,1752007836047,-460.0,0.00024657,2]
[370413566,1752007836056,-460.0,0.00024657,2]
[370413567,1752007836066,-460.0,0.00024657,2]
[370413568,1752007836075,-460.0,0.00024657,2]
[370413569,1752007836085,-460.0,0.00024657,2]
[370413570,1752007836094,-488.59,0.00024657,2]
[370413571,1752007836104,-876.56,0.00024657,2]
[370413572,1752007836114,-460.0,0.00024657,2]
[370413573,1752007836123,-501.84,0.00024657,2]
[370413574,1752007836132,-460.0,0.00024657,2]
[370413575,1752007836144,-460.0,0.00024657,2]
[370413576,1752007836154,-460.0,0.00024657,2]
[370413577,1752007836163,-151.0,0.00024657,7]
[370413578,1752007836174,-151.0,0.00024657,7]
[370413579,1752007836184,-151.0,0.00024657,7]
[370413580,1752007836195,-790.97,0.00024657,2]
[370413581,1752007836205,-460.0,0.00024657,2]
[370413582,1752007836215,-460.0,0.00024657,2]
[370413583,1752007836226,-460.0,0.00024657,2]
[370413584,1752007836236,-984.15,0.00024657,2]
[370413585,1752007836247,-703.02,0.00024657,2]
[370413586,1752007836256,-581.33,0.00024657,2]
[370413587,1752007836266,-896.5,0.00024657,2]
[370413588,1752007836276,-460.0,0.00024657,2]
[370413589,1752007836285,-460.0,0.00024657,2]
[370413590,1752007836295,-460.0,0.00024657,2]
[370413591,1752007836304,-1082.05,0.00024657,2]
[370413592,1752007836313,-460.0,0.00024657,2]
[370413593,1752007836322,-356.4690087,0.00024657,2]
[370413594,1752007836332,-990.93,0.00024657,2]
[370413595,1752007836341,-466.45,0.00024657,2]
[370413596,1752007836350,-755.51,0.00024657,2]
[370413597,1752007836360,-724.34,0.00024657,2]
[370413598,1752007836369,-485.53,0.00024657,2]
[370413599,1752007836378,-460.0,0.00024657,2]
[370413600,1752007836387,-460.0,0.00024657,2]
[370413601,1752007836397,-460.0,0.00024657,2]
[370413602,1752007836406,-460.0,0.00024657,2]
[370413603,1752007836415,-1082.08,0.00024657,2]
[370413604,1752007836425,-552.1,0.00024657,2]
[370413605,1752007836434,-460.0,0.00024657,2]
[370413606,1752007836443,-485.36,0.00024657,2]
[370413607,1752007836453,-581.93,0.00024657,2]
[370413608,1752007836462,-587.82,0.00024657,2]
[370413609,1752007836471,-460.0,0.00024657,2]
[370413610,1752007836482,-1576.99,0.00024657,2]
[370413611,1752007836491,-493.8592707,0.00024657,2]
[370413612,1752007836501,-1616.09,0.00024657,2]
[370413613,1752007836511,-631.66,0.00024657,2]
[370413614,1752007836521,-490.0,0.00024657,2]
[370413615,1752007836530,-460.0,0.00024657,2]
[370413616,1752007836540,-460.0,0.00024657,2]
[370413617,1752007836550,-460.0,0.00024657,2]
[370413618,1752007836559,-460.0,0.00024657,2]
[370413619,1752007836569,-152.935893,0.00024657,7]
[370413620,1752007836578,-460.0,0.00024657,2]
[370413621,1752007836587,-780.12,0.00024657,2]
[370413622,1752007836597,-490.0,0.00024657,2]
[370413623,1752007836607,-484.8,0.00024657,2]
[370413624,1752007836616,-974.5,0.00024657,2]
[370413625,1752007836626,-604.99,0.00024657,2]
[370413626,1752007836635,-460.0,0.00024657,2]
[370413627,1752007836645,-460.0,0.00024657,2]
[370413628,1752007836654,-460.0,0.00024657,2]
[370413629,1752007836663,-460.0,0.00024657,2]
[370413630,1752007836673,-460.0,0.00024657,2]
[370413631,1752007836682,-460.0,0.00024657,2]
[370413632,1752007836691,-460.0,0.00024657,2]
[370413633,1752007836703,-460.0,0.00024657,2]
[370413634,1752007836713,-471.62,0.00024657,2]
[370413635,1752007836722,-1431.35,0.00024657,2]
[370413636,1752007836732,-460.0,0.00024657,2]
[370413637,1752007836742,-460.0,0.00024657,2]
[370413638,1752007836752,-460.0,0.00024657,2]
[370413639,1752007836761,-460.0,0.00024657,2]
[370413640,1752007836771,-1080.81,0.00024657,2]
[370413641,1752007836781,-788.96,0.00024657,2]
[370413642,1752007836790,-460.0,0.00024657,2]
[370413643,1752007836800,-460.0,0.00024657,2]
[370413644,1752007836809,-460.0,0.00024657,2]
[370413645,1752007836818,-460.0,0.00024657,2]
[370413646,1752007836827,-878.16,0.00024657,2]
[370413647,1752007836838,-460.0,0.00024657,2]
[370413648,1752007836850,-685.54,0.00024657,2]
[370413649,1752007836859,-460.0,0.00024657,2]
[370413650,1752007836868,-460.0,0.00024657,2]
[370413651,1752007836877,-460.0,0.00024657,2]
[370413652,1752007836887,-524.96,0.00024657,2]
[370413653,1752007836896,-460.0,0.00024657,2]
[370413654,1752007836906,-460.0,0.00024657,2]
[370413655,1752007836916,-460.0,0.00024657,2]
[370413656,1752007836926,-460.0,0.00024657,2]
[370413657,1752007836937,-460.0,0.00024657,2]
[370413658,1752007836948,-460.0,0.00024657,2]
[370413659,1752007836959,-573.59,0.00024657,2]
[370413660,1752007836969,-460.0,0.00024657,2]
[370413661,1752007836980,-460.0,0.00024657,2]
[370413662,1752007836990,-1398.26,0.00024657,2]
[370413663,1752007837000,-1032.57,0.00024657,2]
[370413664,1752007837010,-460.0,0.00024657,2]
[370413665,1752007837022,-460.0,0.00024657,2]
[370413666,1752007837032,-460.0,0.00024657,2]
[370413667,1752007837042,-406.60907484,0.00024657,2]
[370413668,1752007837053,-580.2,0.00024657,2]
[370413669,1752007837063,-897.39,0.00024657,2]
[370413670,1752007837072,-460.0,0.00024657,2]
[370413671,1752007837082,-460.0,0.00024657,2]
[370413672,1752007837093,-497.06,0.00024657,2]
[370413673,1752007837102,-460.0,0.00024657,2]
[370413674,1752007837112,-466.86,0.00024657,2]
[370413675,1752007837122,-581.95,0.00024657,2]
[370413676,1752007837132,-513.35,0.00024657,2]
[370413677,1752007837142,-534.48,0.00024657,2]
[370413678,1752007837151,-460.0,0.00024657,2]
[370413679,1752007837161,-460.0,0.00024657,2]
[370413680,1752007837171,-151.0,0.00024657,7]
[370413681,1752007837182,-151.0,0.00024657,7]
[370413682,1752007837194,-1462.2,0.00024657,2]
[370413683,1752007837204,-151.0,0.00024657,7]
[370413684,1752007837214,-151.0,0.00024657,7]
[370413685,1752007837225,-460.0,0.00024657,2]
[370413686,1752007837237,-460.0,0.00024657,2]
[370413687,1752007837248,-460.0,0.00024657,2]
[370413688,1752007837258,-460.0,0.00024657,2]
[370413689,1752007837268,-460.0,0.00024657,2]
[370413690,1752007837279,-460.0,0.00024657,2]
[370413691,1752007837289,-460.0,0.00024657,2]
[370413692,1752007837300,-1000.0,0.00024657,2]
[370413693,1752007837311,-642.39,0.00024657,2]
[370413694,1752007837322,-460.0,0.00024657,2]
[370413695,1752007837332,-460.0,0.00024657,2]
[370413696,1752007837342,-477.22,0.00024657,2]
[370413697,1752007837353,-460.0,0.00024657,2]
[370413698,1752007837362,-817.78,0.00024657,2]
[370413699,1752007837371,-562.41,0.00024657,2]
[370413700,1752007837380,-460.0,0.00024657,2]
[370413701,1752007837389,-487.11,0.00024657,2]
[370413702,1752007837399,-623.01,0.00024657,2]
[370413703,1752007837408,-727.97,0.00024657,2]
[370413704,1752007837419,-460.0,0.00024657,2]
[370413705,1752007837428,-467.68,0.00024657,2]
[370413706,1752007837439,-460.0,0.00024657,2]
[370413707,1752007837449,-712.49,0.00024657,2]
[370413708,1752007837459,-460.0,0.00024657,2]
[370413709,1752007837470,-460.0,0.00024657,2]
[370413710,1752007837480,-460.0,0.00024657,2]
[370413711,1752007837490,-871.24,0.00024657,2]
[370413712,1752007837500,-460.0,0.00024657,2]
[370413713,1752007837511,-460.0,0.00024657,2]
[370413714,1752007837520,-460.0,0.00024657,2]
[370413715,1752007837530,-711.94,0.00024657,2]
[370413716,1752007837540,-711.35,0.00024657,2]
[370413717,1752007837549,-460.0,0.00024657,2]
[370413718,1752007837558,-460.0,0.00024657,2]
[370413719,1752007837568,-460.0,0.00024657,2]
[370413720,1752007837578,-573.84,0.00024657,2]
[370413721,1752007837588,-499.6,0.00024657,2]
[370413722,1752007837598,-605.82,0.00024657,2]
[370413723,1752007837607,-389.02208767,0.00024657,2]
[370413724,1752007837617,-1776.5,0.00024657,2]
[370413725,1752007837627,-620.17,0.00024657,2]
[370413726,1752007837636,-460.0,0.00024657,2]
[370413727,1752007837647,-1148.15,0.00024657,2]
[370413728,1752007837656,-460.0,0.00024657,2]
[370413729,1752007837667,-460.0,0.00024657,2]
[370413730,1752007837676,-701.87,0.00024657,2]
[370413733,1752007837938,-1187.0,0.00024657,2]
[370413735,1752007837948,-501.73649138,0.00024657,2]
[370413737,1752007837957,-589.81,0.00024657,2]
[370413739,1752007837967,-483.77,0.00024657,2]
[370413740,1752007837976,-460.0,0.00024657,2]
[370413741,1752007837985,-460.0,0.00024657,2]
[370413743,1752007837995,-767.82,0.00024657,2]
[370413744,1752007838003,-460.0,0.00024657,2]
[370413745,1752007838012,-489.42123951,0.00024657,2]
[370413746,1752007838051,-1059.49876049,0.00024657,2]
[370413748,1752007838060,-544.49,0.00024657,2]
[370413749,1752007838069,-499.81,0.00024657,2]
[370413750,1752007838079,-460.0,0.00024657,2]
[370413751,1752007838088,-460.0,0.00024657,2]
[370413753,1752007838097,-460.0,0.00024657,2]
[370413754,1752007838106,-460.0,0.00024657,2]
[370413755,1752007838115,-460.0,0.00024657,2]
[370413756,1752007838125,-460.0,0.00024657,2]
[370413758,1752007838134,-547.0,0.00024657,2]
[370413759,1752007838144,-891.99,0.00024657,2]
[370413760,1752007838154,-655.64,0.00024657,2]
[370413761,1752007838163,-460.0,0.00024657,2]
[370413762,1752007838174,-460.0,0.00024657,2]
[370413763,1752007838184,-460.0,0.00024657,2]
[370413764,1752007838194,-460.0,0.00024657,2]
[370413765,1752007838203,-537.41,0.00024657,2]
[370413766,1752007838213,-1151.83,0.00024657,2]
[370413767,1752007838223,-460.0,0.00024657,2]
[370413768,1752007838233,-548.55,0.00024657,2]
[370413769,1752007838243,-460.0,0.00024657,2]
[370413770,1752007838254,-460.0,0.00024657,2]
[370413771,1752007838264,-460.0,0.00024657,2]
[370413772,1752007838274,-560.41,0.00024657,2]
[370413773,1752007838285,-460.0,0.00024657,2]
[370413774,1752007838297,-460.0,0.00024657,2]
[370413775,1752007838307,-460.43,0.00024657,2]
[370413776,1752007838316,-708.83,0.00024657,2]
[370413777,1752007838327,-477.38,0.00024657,2]
[370413778,1752007838338,-460.0,0.00024657,2]
[370413779,1752007838346,-460.0,0.00024657,2]
[370413780,1752007838357,-460.0,0.00024657,2]
[370413781,1752007838369,-553.11,0.00024657,2]
[370413782,1752007838378,-460.0,0.00024657,2]
[370413783,1752007838389,-460.0,0.00024657,2]
[370413784,1752007838400,-460.0,0.00024657,2]
[370413785,1752007838412,-1738.49,0.00024657,2]
[370413786,1752007838422,-589.53,0.00024657,2]
[370413787,1752007838433,-2142.92,0.00024657,2]
[370413788,1752007838443,-470.49,0.00024657,2]
[370413789,1752007838453,-460.0,0.00024657,2]
[370413790,1752007838464,-550.0,0.00024657,2]
[370413791,1752007838474,-460.0,0.00024657,2]
[370413792,1752007838483,-460.0,0.00024657,2]
[370413793,1752007838494,-678.47,0.00024657,2]
[370413794,1752007838505,-844.56,0.00024657,2]
[370413795,1752007838514,-460.0,0.00024657,2]
[370413796,1752007838525,-1670.2,0.00024657,2]
[370413797,1752007838535,-460.0,0.00024657,2]
[370413798,1752007838544,-590.58,0.00024657,2]
[370413800,1752007838553,-460.0,0.00024657,2]
[370413803,1752007838563,-460.0,0.00024657,2]
[370413805,1752007838573,-1566.26,0.00024657,2]
[370413807,1752007838582,-1656.71,0.00024657,2]
[370413809,1752007838591,-787.48,0.00024657,2]
[370413811,1752007838601,-2268.22,0.00024657,2]
[370413813,1752007838610,-634.67,0.00024657,2]
[370413815,1752007838620,-1246.86,0.00024657,2]
[370413816,1752007838629,-479.23,0.00024657,2]
[370413818,1752007838638,-670.83,0.00024657,2]
[370413821,1752007838648,-460.0,0.00024657,2]
[370413824,1752007838657,-525.13,0.00024657,2]
[370413826,1752007838667,-635.78,0.00024657,2]
[370413827,1752007838677,-495.81,0.00024657,2]
[370413829,1752007838686,-1439.93,0.00024657,2]
[370413832,1752007838696,-470.55,0.00024657,2]
[370413835,1752007838705,-460.0,0.00024657,2]
[370413837,1752007838715,-2948.85,0.00024657,2]
[370413838,1752007838724,-490.0,0.00024657,2]
[370413840,1752007838733,-460.0,0.00024657,2]
[370413843,1752007838743,-460.0,0.00024657,2]
[370413845,1752007838752,-460.0,0.00024657,2]
[370413847,1752007838761,-460.0,0.00024657,2]
[370413849,1752007838771,-794.96,0.00024657,2]
[370413851,1752007838780,-439.59572502,0.00024657,2]
[370413852,1752007838789,-1079.96,0.00024657,2]
[370413855,1752007838798,-460.0,0.00024657,2]
[370413857,1752007838808,-554.21,0.00024657,2]
[370413859,1752007838817,-466.21,0.00024657,2]
[370413860,1752007838826,-754.22,0.00024657,2]
[370413862,1752007838835,-548.61,0.00024657,2]
[370413865,1752007838849,-460.0,0.00024657,2]
[370413867,1752007838859,-500.0,0.00024657,2]
[370413869,1752007838868,-460.0,0.00024657,2]
[370413871,1752007838877,-460.0,0.00024657,2]
[370413873,1752007838887,-500.0,0.00024657,2]
[370413875,1752007838896,-460.0,0.00024657,2]
[370413877,1752007838905,-460.0,0.00024657,2]
[370413879,1752007838915,-460.0,0.00024657,2]
[370413881,1752007838924,-460.0,0.00024657,2]
[370413883,1752007838935,-904.89,0.00024657,2]
[370413885,1752007838944,-342.91421027,0.00024657,2]
[370413887,1752007838954,-737.97,0.00024657,2]
[370413889,1752007838963,-460.0,0.00024657,2]
[370413890,1752007838973,-460.0,0.00024657,2]
[370413892,1752007838982,-688.36,0.00024657,2]
[370413894,1752007838992,-807.81,0.00024657,2]
[370413896,1752007839001,-460.0,0.00024657,2]
[370413898,1752007839010,-544.06196562,0.00024657,2]
[370413899,1752007839020,-588.08,0.00024657,2]
[370413900,1752007839029,-460.0,0.00024657,2]
[370413901,1752007839038,-543.63,0.00024657,2]
[370413902,1752007839048,-460.0,0.00024657,2]
[370413903,1752007839058,-460.0,0.00024657,2]
[370413904,1752007839067,-1570.97,0.00024657,2]
[370413905,1752007839077,-1923.28,0.00024657,2]
[370413906,1752007839086,-1211.31,0.00024657,2]
[370413907,1752007839097,-817.73,0.00024657,2]
[370413908,1752007839106,-559.87,0.00024657,2]
[370413909,1752007839115,-533.83,0.00024657,2]
[370413910,1752007839125,-460.0,0.00024657,2]
[370413911,1752007839136,-977.97,0.00024657,2]
[370413912,1752007839146,-659.49,0.00024657,2]
[370413913,1752007839156,-150.0,0.00024657,2]
[370413914,1752007839166,-568.81,0.00024657,2]
[370413915,1752007839174,-2290.05,0.00024657,2]
[370413916,1752007839183,-460.0,0.00024657,2]
[370413917,1752007839191,-460.0,0.00024657,2]
[370413918,1752007839200,-951.0,0.00024657,2]
[370413920,1752007839209,-460.0,0.00024657,2]
[370413922,1752007839217,-460.0,0.00024657,2]
[370413924,1752007839225,-460.0,0.00024657,2]
[370413926,1752007839234,-460.0,0.00024657,2]
[370413928,1752007839244,-460.0,0.00024657,2]
[370413930,1752007839254,-462.39,0.00024657,2]
[370413932,1752007839264,-460.0,0.00024657,2]
[370413934,1752007839275,-460.0,0.00024657,2]
[370413936,1752007839285,-2962.66,0.00024657,2]
[370413938,1752007839294,-604.82,0.00024657,2]
[370413940,1752007839303,-1057.67,0.00024657,2]
[370413942,1752007839313,-2423.63,0.00024657,2]
[370413944,1752007839323,-211.06103739,0.00024657,2]
[370413946,1752007839333,-460.0,0.00024657,2]
[370413949,1752007839343,-460.0,0.00024657,2]
[370413950,1752007839352,-460.0,0.00024657,2]
[370413951,1752007839363,-706.89,0.00024657,2]
[370413952,1752007839373,-460.0,0.00024657,2]
[370413953,1752007839383,-1653.89,0.00024657,2]
[370413954,1752007839393,-460.0,0.00024657,2]
[370413955,1752007839403,-460.0,0.00024657,2]
[370413956,1752007839414,-962.29,0.00024657,2]
[370413957,1752007839425,-556.92,0.00024657,2]
[370413958,1752007839436,-460.0,0.00024657,2]
[370413959,1752007839447,-460.0,0.00024657,2]
[370413960,1752007839457,-915.12,0.00024657,2]
[370413961,1752007839466,-2084.23,0.00024657,2]
[370413962,1752007839476,-1065.27,0.00024657,2]
[370413963,1752007839486,-460.0,0.00024657,2]
[370413964,1752007839496,-460.0,0.00024657,2]
[370413965,1752007839505,-1371.84,0.00024657,2]
[370413966,1752007839515,-460.0,0.00024657,2]
[370413967,1752007839526,-553.64859056,0.00024657,2]
[370413968,1752007839535,-460.0,0.00024657,2]
[370413969,1752007839545,-460.0,0.00024657,2]
[370413970,1752007839554,-636.11,0.00024657,2]
[370413971,1752007839564,-460.0,0.00024657,2]
[370413972,1752007839573,-733.79,0.00024657,2]
[370413973,1752007839583,-460.0,0.00024657,2]
[370413974,1752007839593,-460.0,0.00024657,2]
[370413975,1752007839602,-2547.43,0.00024657,2]
[370413976,1752007839611,-150.0,0.00024657,2]
[370413977,1752007839619,-3170.94,0.00024657,2]
[370413978,1752007839628,-460.0,0.00024657,2]
[370413979,1752007839638,-460.0,0.00024657,2]
[370413980,1752007839647,-460.0,0.00024657,2]
[370413981,1752007839657,-199.55326479,0.00024657,2]
[370413982,1752007839667,-500.0,0.00024657,2]
[370413983,1752007839677,-460.0,0.00024657,2]
[370413984,1752007839686,-460.0,0.00024657,2]
[370413985,1752007839696,-580.55,0.00024657,2]
[370413986,1752007839706,-834.52,0.00024657,2]
[370413987,1752007839716,-150.0,0.00024657,2]
[370413988,1752007839726,-1778.66,0.00024657,2]
[370413989,1752007839735,-460.0,0.00024657,2]
[370413990,1752007839745,-460.0,0.00024657,2]
[370413991,1752007839755,-460.0,0.00024657,2]
[370413992,1752007839764,-1208.36,0.00024657,2]
[370413993,1752007839774,-460.0,0.00024657,2]
[370413994,1752007839783,-423.04059615,0.00024657,2]
[370413995,1752007839793,-2318.87043307,0.00024657,2]
[370414002,1752007840625,-385.78956693,0.00024657,2]
[370414003,1752007840635,-460.0,0.00024657,2]
[370414004,1752007840644,-460.0,0.00024657,2]
[370414005,1752007840654,-150.0,0.00024657,2]
[370414006,1752007840663,-460.0,0.00024657,2]
[370414007,1752007840673,-460.0,0.00024657,2]
[370414008,1752007840683,-150.16927869,0.00024657,2]
[370414009,1752007840692,-968.92,0.00024657,2]
[370414010,1752007840702,-500.0,0.00024657,2]
[370414011,1752007840712,-650.67,0.00024657,2]
[370414012,1752007840722,-460.0,0.00024657,2]
[370414013,1752007840731,-460.0,0.00024657,2]
[370414014,1752007840740,-460.0,0.00024657,2]
[370414015,1752007840749,-1195.16,0.00024657,2]
[370414016,1752007840758,-1707.92,0.00024657,2]
[370414017,1752007840767,-460.0,0.00024657,2]
[370414018,1752007840777,-2107.1,0.00024657,2]
[370414019,1752007840785,-489.75115438,0.00024657,2]
[370414020,1752007840798,-383.46884562,0.00024657,2]
[370414021,1752007840808,-460.0,0.00024657,2]
[370414022,1752007840819,-920.79,0.00024657,2]
[370414023,1752007840829,-150.24410175,0.00024657,2]
[370414024,1752007840845,-150.0,0.00024657,2]
[370414025,1752007840857,-464.72,0.00024657,2]
[370414026,1752007840869,-150.0,0.00024657,2]
[370414027,1752007840879,-460.0,0.00024657,2]
[370414028,1752007840890,-460.0,0.00024657,2]
[370414029,1752007840899,-460.0,0.00024657,2]
[370414030,1752007840907,-460.0,0.00024657,2]
[370414031,1752007840916,-102.01566921,0.00024657,2]
[370414032,1752007840951,-357.98433079,0.00024657,2]
[370414033,1752007840960,-476.33,0.00024657,2]
[370414034,1752007840969,-151.0,0.00024657,2]
[370414035,1752007840978,-460.0,0.00024657,2]
[370414036,1752007840987,-151.0,0.00024657,2]
[370414037,1752007840996,-151.0,0.00024657,2]
[370414038,1752007841004,-1270.6,0.00024657,2]
[370414039,1752007841014,-151.0,0.00024657,2]
[370414040,1752007841024,-460.0,0.00024657,2]
[370414041,1752007841033,-754.03019753,0.00024657,2]
[370414042,1752007841046,-1739.93980247,0.00024657,2]
[370414043,1752007841056,-460.0,0.00024657,2]
[370414044,1752007841068,-2382.13,0.00024657,2]
[370414045,1752007841078,-646.35342362,0.00024657,2]
[370414057,1752007843174,-210.34477682,0.00024484,2]
[370414059,1752007843184,-190.24529051,0.00024657,2]
[370414061,1752007843195,-103.57128587,0.00024657,2]
[370414065,1752007843204,-704.1,0.00024657,2]
[370414067,1752007843213,-461.48,0.00024657,2]
[370414094,1752007843367,-460.0,0.00024657,2]
[370414095,1752007843377,-666.48,0.00024657,2]
[370414096,1752007843387,-460.0,0.00024657,2]
[370414097,1752007843396,-1558.52,0.00024657,2]
[370414098,1752007843405,-460.0,0.00024657,2]
[370414099,1752007843414,-460.0,0.00024657,2]
[370414100,1752007843423,-624.04,0.00024657,2]
[370414101,1752007843432,-1407.05,0.00024657,2]
[370414102,1752007843441,-460.0,0.00024657,2]
[370414103,1752007843450,-619.56,0.00024657,2]
[370414104,1752007843459,-424.30342516,0.00024657,2]
[370414105,1752007843472,-399.96657484,0.00024657,2]
[370414106,1752007843481,-460.0,0.00024657,2]
[370414107,1752007843490,-274.636803,0.00024657,7]
[370414108,1752007843499,-274.636803,0.00024657,7]
[370414109,1752007843510,-274.636803,0.00024657,7]
[370414110,1752007843519,-1506.78,0.00024657,2]
[370414111,1752007843532,-538.52,0.00024657,2]
[370414112,1752007843541,-460.0,0.00024657,2]
[370414113,1752007843551,-728.11,0.00024657,2]
[370414114,1752007843560,-460.0,0.00024657,2]
[370414115,1752007843570,-895.8,0.00024657,2]
[370414116,1752007843579,-460.0,0.00024657,2]
[370414117,1752007843588,-512.76,0.00024657,2]
[370414118,1752007843598,-460.0,0.00024657,2]
[370414119,1752007843607,-274.636803,0.00024657,7]
[370414120,1752007843616,-274.636803,0.00024657,7]
[370414121,1752007843625,-1561.28,0.00024657,2]
[370414122,1752007843635,-3455.82,0.00024657,2]
[370414123,1752007843644,-460.0,0.00024657,2]
[370414124,1752007843654,-489.64,0.00024657,2]
[370414125,1752007843664,-274.636803,0.00024657,7]
[370414126,1752007843674,-1826.4,0.00024657,2]
[370414128,1752007843684,-460.0,0.00024657,2]
[370414129,1752007843694,-274.636803,0.00024657,7]
[370414130,1752007843704,-274.636803,0.00024657,7]
[370414131,1752007843713,-274.636803,0.00024657,7]
[370414132,1752007843722,-1986.97,0.00024657,2]
[370414133,1752007843732,-274.636803,0.00024657,7]
[370414134,1752007843741,-460.0,0.00024657,2]
[370414135,1752007843750,-1815.47,0.00024657,2]
[370414136,1752007843760,-460.0,0.00024657,2]
[370414137,1752007843769,-608.8,0.00024657,2]
[370414139,1752007843779,-535.87,0.00024657,2]
[370414140,1752007843788,-460.0,0.00024657,2]
[370414141,1752007843798,-460.0,0.00024657,2]
[370414142,1752007843807,-460.0,0.00024657,2]
[370414143,1752007843817,-1751.82,0.00024657,2]
[370414144,1752007843826,-460.0,0.00024657,2]
[370414145,1752007843835,-752.51,0.00024657,2]
[370414146,1752007843849,-1540.49,0.00024657,2]